fUST/lending_fUST_20250729
["ID","MTS","AMOUNT","RATE_DAILY","PERIOD"]
[375965270,1753801858381,-485.45,0.00019962,2]
[375965271,1753801858393,-460.0,0.00019962,2]
[375965272,1753801858402,-520.65,0.00019962,2]
[375965273,1753801858412,-2741.32,0.00019962,2]
[375965274,1753801858422,-542.11,0.00019962,2]
[375965275,1753801858434,-151.0,0.00019962,2]
[375965276,1753801858443,-565.43,0.00019962,2]
[375965277,1753801858452,-1231.38,0.00019962,2]
[375965278,1753801858462,-460.0,0.00019962,2]
[375965279,1753801858471,-1909.24,0.00019962,2]
[375965280,1753801858480,-577.48,0.00019962,2]
[375965281,1753801858489,-3553.32,0.00019962,2]
[375965282,1753801858499,-460.0,0.00019962,2]
[375965283,1753801858508,-654.31,0.00019962,2]
[375965284,1753801858517,-460.0,0.00019962,2]
[375965285,1753801858526,-460.0,0.00019962,2]
[375965286,1753801858535,-977.06,0.00019962,2]
[375965287,1753801858545,-2428.42,0.00019962,2]
[375965288,1753801858554,-460.0,0.00019962,2]
[375965289,1753801858563,-460.0,0.00019962,2]
[375965290,1753801858573,-767.52,0.00019962,2]
[375965291,1753801858582,-1052.62,0.00019962,2]
[375965292,1753801858592,-471.18098114,0.00019962,2]
[375965293,1753801858601,-881.66,0.00019962,2]
[375965294,1753801858610,-460.0,0.00019962,2]
[375965295,1753801858620,-819.8,0.00019962,2]
[375965296,1753801858629,-705.57,0.00019962,2]
[375965297,1753801858639,-2714.61786014,0.00019962,2]
[375965298,1753801858651,-388.542,0.00019962,2]
[375965299,1753801858663,-4844.32013986,0.00019962,2]
[375965300,1753801858672,-460.0,0.00019962,2]
[375965301,1753801858681,-715.32,0.00019962,2]
[375965302,1753801858691,-541.38,0.00019962,2]
[375965303,1753801858700,-460.0,0.00019962,2]
[375965304,1753801858710,-151.0,0.00019962,2]
[375965305,1753801858719,-2027.5,0.00019962,2]
[375965306,1753801858728,-2995.42,0.00019962,2]
[375965307,1753801858738,-1657.37,0.00019962,2]
[375965308,1753801858747,-460.0,0.00019962,2]
[375965309,1753801858756,-872.15,0.00019962,2]
[375965310,1753801858766,-2995.59,0.00019962,2]
[375965311,1753801858775,-551.01,0.00019962,2]
[375965312,1753801858784,-396.59168785,0.00019962,2]
[375965313,1753801858798,-63.40831215,0.00019962,2]
[375965314,1753801858808,-151.0,0.00019963,2]
[375965315,1753801858817,-200.591636,0.00019963,2]
[375965316,1753801858827,-200.591636,0.00019963,2]
[375965317,1753801858836,-214.321678,0.00019963,2]
[375965318,1753801858846,-214.321678,0.00019963,2]
[375965319,1753801858856,-151.0,0.00019963,2]
[375965320,1753801858865,-435.553773,0.00019963,2]
[375965321,1753801858874,-428.71128685,0.00019963,2]
[375965322,1753801858886,-6.84248615,0.00019963,2]
[375965323,1753801858895,-154.644636,0.00019963,2]
[375965324,1753801858904,-151.0,0.00019963,2]
[375965325,1753801858913,-151.0,0.00019963,2]
[375965326,1753801858923,-247.483723,0.00019963,2]
[375965327,1753801858933,-182.166354,0.00019963,2]
[375965328,1753801858942,-182.166354,0.00019963,2]
[375965329,1753801858952,-245.520073,0.00019963,2]
[375965330,1753801858961,-245.520073,0.00019963,2]
[375965331,1753801858971,-151.0,0.00019963,2]
[375965332,1753801858981,-151.0,0.00019964,2]
[375965333,1753801858990,-151.0,0.00019964,2]
[375965334,1753801858999,-363.692089,0.00019964,2]
[375965335,1753801859008,-363.692089,0.00019964,2]
[375965336,1753801859017,-369.078666,0.00019964,2]
[375965337,1753801859027,-369.078666,0.00019964,2]
[375965338,1753801859036,-151.0,0.00019964,2]
[375965339,1753801859046,-151.0,0.00019964,2]
[375965340,1753801859055,-354.077728,0.00019964,2]
[375965341,1753801859064,-354.077728,0.00019964,2]
[375965342,1753801859074,-265.046953,0.00019964,2]
[375965343,1753801859085,-265.046953,0.00019964,2]
[375965344,1753801859097,-151.0,0.00019964,2]
[375965345,1753801859107,-271.663058,0.00019964,2]
[375965346,1753801859116,-271.663058,0.00019964,2]
[375965347,1753801859128,-460.0,0.00019964,2]
[375965348,1753801859137,-197.221151,0.00019964,2]
[375965349,1753801859146,-197.221151,0.00019964,2]
[375965350,1753801859155,-151.0,0.00019965,2]
[375965351,1753801859165,-194.866001,0.00019965,2]
[375965352,1753801859175,-214.321678,0.00019965,2]
[375965353,1753801859184,-214.321678,0.00019965,2]
[375965354,1753801859194,-151.0,0.00019965,2]
[375965355,1753801859204,-151.0,0.00019973,2]
[375965356,1753801859213,-151.0,0.0001999,2]
[375965357,1753801859223,-369.078666,0.0001999,2]
[375965358,1753801859232,-369.078666,0.0001999,2]
[375965359,1753801859241,-354.077728,0.0001999,2]
[375965360,1753801859250,-354.077728,0.0001999,2]
[375965361,1753801859259,-265.046953,0.0001999,2]
[375965362,1753801859267,-265.046953,0.0001999,2]
[375965363,1753801859276,-271.663058,0.0001999,2]
[375965364,1753801859286,-271.663058,0.0001999,2]
[375965365,1753801859295,-197.221151,0.0001999,2]
[375965366,1753801859305,-197.221151,0.0001999,2]
[375965367,1753801859315,-3166.53439833,0.0001999,2]
[375965368,1753801859324,-2039.69336636,0.0002,2]
[375965369,1753801859333,-5123.31380866,0.0002,2]
[375965370,1753801859342,-173.743,0.0002,2]
[375965371,1753801859352,-151.0,0.0002,3]
[375965372,1753801859361,-160.0,0.0002,3]
[375965373,1753801859370,-151.0,0.00020014,2]
[375965374,1753801859379,-151.0,0.00020016,2]
[375965375,1753801859391,-1507.35794113,0.0002006,2]
[375965376,1753801859400,-2516.0,0.00020062,2]
[375965377,1753801859410,-151.0,0.00020064,2]
[375965378,1753801859419,-200.591636,0.00020064,2]
[375965379,1753801859430,-200.591636,0.00020064,2]
[375965380,1753801859439,-500.0,0.00020068,2]
[375965381,1753801859448,-151.0,0.00020068,2]
[375965382,1753801859457,-604.0,0.00020068,2]
[375965383,1753801859467,-500.0,0.00020068,2]
[375965384,1753801859475,-500.0,0.00020068,2]
[375965385,1753801859485,-151.0,0.00020068,2]
[375965386,1753801859493,-151.0,0.00020068,2]
[375965387,1753801859502,-151.0,0.00020068,2]
[375965388,1753801859511,-500.0,0.00020068,2]
[375965389,1753801859520,-151.0,0.00020068,2]
[375965390,1753801859529,-151.0,0.00020068,2]
[375965391,1753801859538,-151.50902877,0.00020068,2]
[375965392,1753801859547,-151.0,0.00020068,2]
[375965393,1753801859557,-151.0,0.00020068,2]
[375965394,1753801859566,-500.0,0.00020068,2]
[375965395,1753801859575,-151.0,0.00020068,2]
[375965396,1753801859585,-151.0,0.00020068,2]
[375965397,1753801859594,-619.14288307,0.00020068,2]
[375965398,1753801859603,-691.0,0.00020068,2]
[375965399,1753801859612,-276.90944129,0.00020068,2]
[375965400,1753801859621,-500.0,0.00020068,2]
[375965401,1753801859631,-151.0,0.00020068,2]
[375965402,1753801859640,-500.0,0.00020068,2]
[375965403,1753801859649,-151.0,0.00020068,2]
[375965404,1753801859659,-266.53549151,0.00020068,2]
[375965405,1753801859668,-151.0,0.00020068,2]
[375965406,1753801859678,-151.15841428,0.00020068,2]
[375965407,1753801859795,-151.0,0.00020068,2]
[375965408,1753801859805,-151.0,0.00020068,2]
[375965409,1753801859815,-151.0,0.00020068,2]
[375965410,1753801859823,-151.0,0.00020068,2]
[375965411,1753801859832,-151.0,0.000201,4]
[375965412,1753801859841,-426.97,0.00020102,2]
[375965413,1753801859851,-1833.60362468,0.00020107,2]
[375965414,1753801859861,-3946.822779,0.00020136,2]
[375965415,1753801859870,-500.0,0.00020169,2]
[375965416,1753801859880,-500.36574572,0.00020169,2]
[375965417,1753801859890,-154.07384469,0.00020169,2]
[375965418,1753801859899,-500.0,0.0002017,2]
[375965419,1753801859908,-501.58014169,0.0002017,2]
[375965420,1753801859917,-500.0,0.0002017,2]
[375965421,1753801859930,-500.0,0.0002017,2]
[375965422,1753801859940,-503.59060838,0.00020179,2]
[375965423,1753801859949,-500.0,0.00020179,2]
[375965424,1753801859959,-500.0,0.00020179,2]
[375965425,1753801859968,-500.0,0.00020179,2]
[375965426,1753801859978,-202.72386306,0.00020179,2]
[375965427,1753801859988,-188.53538244,0.00020179,2]
[375965428,1753801859997,-501.6212616,0.00020179,2]
[375965429,1753801860006,-500.2930423,0.00020179,2]
[375965430,1753801860016,-500.0,0.00020179,2]
[375965431,1753801860026,-500.0,0.00020179,2]
[375965432,1753801860036,-500.44982833,0.00020179,2]
[375965433,1753801860046,-501.36113289,0.00020179,2]
[375965434,1753801860056,-500.0,0.00020179,2]
[375965435,1753801860066,-500.0,0.00020179,2]
[375965436,1753801860076,-500.0,0.00020179,2]
[375965437,1753801860086,-520.03081759,0.00020179,2]
[375965438,1753801860096,-443.99541768,0.00020179,2]
[375965439,1753801860105,-500.0,0.00020179,2]
[375965440,1753801860115,-500.0,0.00020179,2]
[375965441,1753801860124,-500.0,0.00020179,2]
[375965442,1753801860134,-503.10716674,0.00020179,2]
[375965443,1753801860143,-501.22848922,0.00020179,2]
[375965444,1753801860152,-307.304949,0.00020187,2]
[375965445,1753801860162,-458.68197297,0.00020221,2]
[375965446,1753801860172,-1000.0,0.00020221,2]
[375965447,1753801860182,-374.84,0.00020226,3]
[375965448,1753801860192,-460.0,0.00020233,2]
[375965449,1753801860202,-561.95,0.00020233,2]
[375965450,1753801860211,-633.37,0.00020233,2]
[375965451,1753801860220,-2694.22,0.00020233,2]
[375965452,1753801860230,-460.0,0.00020234,2]
[375965453,1753801860240,-460.0,0.00020234,2]
[375965454,1753801860250,-3991.18,0.00020234,2]
[375965455,1753801860260,-713.0,0.00020234,2]
[375965456,1753801860269,-3231.06,0.00020234,2]
[375965457,1753801860280,-460.0,0.00020234,2]
[375965458,1753801860291,-2167.94,0.00020234,2]
[375965459,1753801860301,-460.0,0.00020235,2]
[375965460,1753801860311,-532.83,0.00020235,2]
[375965461,1753801860320,-460.0,0.00020235,2]
[375965462,1753801860330,-460.0,0.00020235,2]
[375965463,1753801860340,-570.91,0.00020235,2]
[375965464,1753801860349,-460.0,0.00020235,2]
[375965465,1753801860359,-460.0,0.00020235,2]
[375965466,1753801860369,-801.96,0.00020235,2]
[375965467,1753801860378,-654.78,0.00020235,2]
[375965468,1753801860390,-1116.08,0.00020235,2]
[375965469,1753801860401,-493.64,0.00020235,2]
[375965470,1753801860410,-460.0,0.00020235,2]
[375965471,1753801860420,-460.0,0.00020235,2]
[375965472,1753801860431,-460.0,0.00020235,2]
[375965473,1753801860440,-460.0,0.00020235,2]
[375965474,1753801860450,-707.97,0.00020235,2]
[375965475,1753801860460,-253.11424763,0.00020235,2]
[375965476,1753801860470,-769.2,0.00020235,2]
[375965477,1753801860480,-460.0,0.00020235,2]
[375965478,1753801860490,-628.38,0.00020235,2]
[375965479,1753801860499,-529.68,0.00020235,2]
[375965480,1753801860508,-503.10481007,0.00020235,2]
[375965481,1753801860522,-907.64518993,0.00020235,2]
[375965482,1753801860532,-713.27,0.00020235,2]
[375965483,1753801860544,-460.0,0.00020235,2]
[375965484,1753801860554,-460.0,0.00020235,2]
[375965485,1753801860563,-460.0,0.00020235,2]
[375965486,1753801860573,-200.0,0.00020235,2]
[375965487,1753801860583,-289.758156,0.00020236,2]
[375965488,1753801860592,-169.487914,0.00020236,2]
[375965489,1753801860602,-363.692089,0.00020236,2]
[375965490,1753801860611,-363.692089,0.00020236,2]
[375965491,1753801860621,-151.0,0.00020236,2]
[375965492,1753801860630,-151.0,0.00020236,2]
[375965493,1753801860640,-151.0,0.00020236,2]
[375965494,1753801860649,-2562.35,0.00020236,2]
[375965495,1753801860658,-151.0,0.00020236,2]
[375965496,1753801860667,-460.0,0.00020236,2]
[375965497,1753801860677,-151.0,0.00020236,2]
[375965498,1753801860687,-460.0,0.00020236,2]
[375965499,1753801860697,-182.166354,0.00020236,2]
[375965500,1753801860706,-182.166349,0.00020236,2]
[375965501,1753801860715,-460.0,0.00020236,2]
[375965502,1753801860725,-245.520073,0.00020236,2]
[375965503,1753801860735,-245.520066,0.00020236,2]
[375965504,1753801860744,-460.0,0.00020236,2]
[375965505,1753801860754,-460.0,0.00020236,2]
[375965506,1753801860763,-151.0,0.00020236,2]
[375965507,1753801860772,-151.0,0.00020236,2]
[375965508,1753801860782,-460.0,0.00020236,2]
[375965509,1753801860794,-460.0,0.00020236,2]
[375965510,1753801860803,-677.934949,0.00020236,2]
[375965511,1753801860812,-677.934949,0.00020236,2]
[375965512,1753801860821,-215.19897,0.00020236,2]
[375965513,1753801860831,-215.19897,0.00020236,2]
[375965514,1753801860845,-460.0,0.00020236,2]
[375965515,1753801860863,-5752.38,0.00020236,2]
[375965516,1753801860877,-855.67,0.00020236,2]
[375965517,1753801860890,-799.06,0.00020236,2]
[375965518,1753801860904,-460.0,0.00020236,2]
[375965519,1753801860919,-460.0,0.00020236,2]
[375965520,1753801860934,-460.0,0.00020236,2]
[375965521,1753801860949,-460.0,0.00020236,2]
[375965522,1753801860964,-744.81,0.00020236,2]
[375965523,1753801860977,-460.0,0.00020236,2]
[375965524,1753801860991,-460.0,0.00020236,2]
[375965525,1753801861008,-460.0,0.00020236,2]
[375965526,1753801861023,-460.0,0.00020236,2]
[375965527,1753801861035,-3021.87,0.00020236,2]
[375965528,1753801861050,-460.0,0.00020236,2]
[375965529,1753801861063,-460.0,0.00020236,2]
[375965530,1753801861077,-152.910834,0.00020236,2]
[375965531,1753801861092,-548.028466,0.00020236,2]
[375965532,1753801861106,-460.0,0.00020236,2]
[375965533,1753801861120,-1061.68,0.00020236,2]
[375965534,1753801861136,-548.028466,0.00020236,2]
[375965535,1753801861147,-814.85,0.00020236,2]
[375965536,1753801861158,-485.45,0.00020236,2]
[375965537,1753801861172,-520.65,0.00020236,2]
[375965538,1753801861189,-2741.32,0.00020236,2]
[375965539,1753801861200,-151.0,0.00020236,2]
[375965540,1753801861213,-565.43,0.00020236,2]
[375965541,1753801861227,-1231.38,0.00020236,2]
[375965542,1753801861239,-460.0,0.00020236,2]
[375965543,1753801861250,-1909.24,0.00020236,2]
[375965544,1753801861263,-577.48,0.00020236,2]
[375965545,1753801861279,-3553.32,0.00020236,2]
[375965546,1753801861294,-460.0,0.00020236,2]
[375965547,1753801861307,-654.31,0.00020236,2]
[375965548,1753801861320,-460.0,0.00020236,2]
[375965549,1753801861333,-460.0,0.00020236,2]
[375965550,1753801861348,-977.06,0.00020236,2]
[375965551,1753801861360,-2428.42,0.00020236,2]
[375965552,1753801861372,-460.0,0.00020236,2]
[375965553,1753801861386,-460.0,0.00020236,2]
[375965554,1753801861401,-767.52,0.00020236,2]
[375965555,1753801861413,-1052.62,0.00020236,2]
[375965556,1753801861426,-881.66,0.00020236,2]
[375965557,1753801861440,-819.8,0.00020236,2]
[375965558,1753801861452,-705.57,0.00020236,2]
[375965559,1753801861465,-7947.48,0.00020236,2]
[375965560,1753801861479,-460.0,0.00020236,2]
[375965561,1753801861492,-715.32,0.00020236,2]
[375965562,1753801861504,-541.38,0.00020236,2]
[375965563,1753801861516,-460.0,0.00020236,2]
[375965564,1753801861529,-151.0,0.00020236,2]
[375965565,1753801861543,-2995.42,0.00020236,2]
[375965566,1753801861555,-2027.5,0.00020236,2]
[375965567,1753801861568,-1657.37,0.00020236,2]
[375965568,1753801861580,-460.0,0.00020236,2]
[375965569,1753801861592,-872.15,0.00020236,2]
[375965570,1753801861604,-2995.59,0.00020236,2]
[375965571,1753801861618,-551.01,0.00020236,2]
[375965572,1753801861628,-460.0,0.00020236,2]
[375965573,1753801861637,-151.0,0.00020237,2]
[375965574,1753801861646,-151.0,0.00020237,2]
[375965575,1753801861656,-214.321678,0.00020237,2]
[375965576,1753801861666,-214.321678,0.00020237,2]
[375965577,1753801861675,-435.553773,0.00020237,2]
[375965578,1753801861684,-435.553773,0.00020237,2]
[375965579,1753801861694,-151.0,0.00020237,2]
[375965580,1753801861703,-284.06082,0.00020237,2]
[375965581,1753801861712,-200.591636,0.00020238,2]
[375965582,1753801861722,-200.591631,0.00020238,2]
[375965583,1753801861731,-151.0,0.00020238,2]
[375965584,1753801861742,-151.0,0.00020238,2]
[375965585,1753801861751,-151.0,0.00020238,2]
[375965586,1753801861760,-369.078666,0.00020238,2]
[375965587,1753801861770,-369.078666,0.00020238,2]
[375965588,1753801861779,-354.077728,0.00020238,2]
[375965589,1753801861791,-354.077728,0.00020238,2]
[375965590,1753801861800,-265.046953,0.00020238,2]
[375965591,1753801861810,-265.046953,0.00020238,2]
[375965592,1753801861820,-151.0,0.00020238,2]
[375965593,1753801861829,-271.663058,0.00020238,2]
[375965594,1753801861839,-271.663058,0.00020238,2]
[375965595,1753801861849,-460.0,0.00020238,2]
[375965596,1753801861858,-197.221151,0.00020238,2]
[375965597,1753801861868,-197.221151,0.00020238,2]
[375965598,1753801861877,-151.0,0.00020239,2]
[375965599,1753801861887,-151.0,0.00020239,2]
[375965600,1753801861897,-151.0,0.00020239,2]
[375965601,1753801861906,-151.0,0.00020239,2]
[375965602,1753801861915,-151.0,0.00020247,2]
[375965603,1753801861925,-202.307778,0.00020247,2]
[375965604,1753801861935,-215.19897,0.00020247,2]
[375965605,1753801861945,-215.19897,0.00020247,2]
[375965606,1753801861954,-1500.0,0.00020268,2]
[375965607,1753801861964,-532.88864039,0.00020268,2]
[375965608,1753801861975,-500.0,0.00020268,2]
[375965609,1753801861984,-1000.0,0.00020268,2]
[375965610,1753801861994,-1833.60362468,0.00020279,3]
[375965611,1753801862003,-969.0,0.00020322,2]
[375965612,1753801862013,-423.711,0.00020322,2]
[375965613,1753801862022,-425.682,0.00020322,2]
[375965614,1753801862031,-214.321678,0.00020338,2]
[375965615,1753801862042,-214.321683,0.00020338,2]
[375965616,1753801862051,-500.0,0.00020342,2]
[375965617,1753801862060,-151.0,0.00020342,2]
[375965618,1753801862070,-602.24277656,0.00020342,2]
[375965619,1753801862334,-500.0,0.00020342,2]
[375965620,1753801862351,-151.0,0.00020342,2]
[375965621,1753801862364,-151.0,0.00020342,2]
[375965622,1753801862374,-500.0,0.00020342,2]
[375965623,1753801862384,-202.87319312,0.00020342,2]
[375965624,1753801862397,-151.0,0.00020342,2]
[375965625,1753801862406,-152.53248083,0.00020342,2]
[375965626,1753801862416,-250.13414532,0.00020342,2]
[375965627,1753801862427,-201.72492483,0.00020342,2]
[375965628,1753801862436,-691.0,0.00020342,2]
[375965629,1753801862445,-500.0,0.00020342,2]
[375965630,1753801862455,-151.0,0.00020342,2]
[375965631,1753801862465,-500.0,0.00020342,2]
[375965632,1753801862475,-254.0903166,0.00020342,2]
[375965633,1753801862484,-151.0,0.00020342,2]
[375965634,1753801862494,-151.0,0.00020342,2]
[375965635,1753801862503,-151.0,0.00020342,2]
[375965636,1753801862513,-151.0,0.00020348,2]
[375965637,1753801862522,-1507.35794113,0.0002041,2]
[375965638,1753801862532,-435.553773,0.00020433,2]
[375965639,1753801862543,-435.553773,0.00020433,2]
[375965640,1753801862553,-548.028466,0.00020434,2]
[375965641,1753801862563,-548.028466,0.00020434,2]
[375965642,1753801862572,-151.0,0.00020437,2]
[375965643,1753801862582,-151.0,0.00020437,2]
[375965644,1753801862591,-151.0,0.00020437,2]
[375965645,1753801862600,-151.0,0.00020437,2]
[375965646,1753801862609,-1833.60362468,0.00020452,3]
[375965647,1753801862618,-605.4853965,0.00020478,4]
[375965648,1753801862628,-454.13673149,0.00020486,4]
[375965649,1753801862637,-260.0,0.00020498,2]
[375965650,1753801862646,-460.0,0.00020507,2]
[375965651,1753801862656,-561.95,0.00020507,2]
[375965652,1753801862666,-633.37,0.00020507,2]
[375965653,1753801862677,-2694.22,0.00020507,2]
[375965654,1753801862686,-460.0,0.00020508,2]
[375965655,1753801862696,-460.0,0.00020508,2]
[375965656,1753801862705,-3991.18,0.00020508,2]
[375965657,1753801862714,-713.0,0.00020508,2]
[375965658,1753801862723,-3231.06,0.00020508,2]
[375965659,1753801862732,-460.0,0.00020508,2]
[375965660,1753801862742,-2167.94,0.00020508,2]
[375965661,1753801862751,-460.0,0.00020509,2]
[375965662,1753801862761,-532.83,0.00020509,2]
[375965663,1753801862771,-460.0,0.00020509,2]
[375965664,1753801862780,-460.0,0.00020509,2]
[375965665,1753801862790,-460.0,0.00020509,2]
[375965666,1753801862799,-460.0,0.00020509,2]
[375965667,1753801862807,-801.96,0.00020509,2]
[375965668,1753801862817,-654.78,0.00020509,2]
[375965669,1753801862826,-1116.08,0.00020509,2]
[375965670,1753801862836,-493.64,0.00020509,2]
[375965671,1753801862846,-460.0,0.00020509,2]
[375965672,1753801862855,-417.55617241,0.00020509,2]
[375965673,1753801862864,-707.97,0.00020509,2]
[375965674,1753801862873,-460.0,0.00020509,2]
[375965675,1753801862882,-769.2,0.00020509,2]
[375965676,1753801862892,-628.38,0.00020509,2]
[375965677,1753801862901,-529.68,0.00020509,2]
[375965678,1753801862911,-1410.75,0.00020509,2]
[375965679,1753801862920,-713.27,0.00020509,2]
[375965680,1753801862930,-460.0,0.00020509,2]
[375965681,1753801862939,-469.92625322,0.00020509,2]
[375965682,1753801862949,-419.23770194,0.00020509,2]
[375965683,1753801862959,-151.0,0.0002051,2]
[375965684,1753801862969,-157.909055,0.0002051,2]
[375965685,1753801862979,-151.0,0.0002051,2]
[375965686,1753801862989,-363.692089,0.0002051,2]
[375965687,1753801862998,-363.692089,0.0002051,2]
[375965688,1753801863008,-369.078666,0.0002051,2]
[375965689,1753801863017,-369.078666,0.0002051,2]
[375965690,1753801863027,-151.0,0.0002051,2]
[375965691,1753801863037,-151.0,0.0002051,2]
[375965692,1753801863048,-354.077728,0.0002051,2]
[375965693,1753801863057,-354.077728,0.0002051,2]
[375965694,1753801863067,-265.046953,0.0002051,2]
[375965695,1753801863077,-265.046953,0.0002051,2]
[375965696,1753801863086,-271.663058,0.0002051,2]
[375965697,1753801863096,-271.663058,0.0002051,2]
[375965698,1753801863106,-2562.35,0.0002051,2]
[375965699,1753801863115,-460.0,0.0002051,2]
[375965700,1753801863124,-151.0,0.0002051,2]
[375965701,1753801863134,-197.221151,0.0002051,2]
[375965702,1753801863144,-197.221151,0.0002051,2]
[375965703,1753801863153,-460.0,0.0002051,2]
[375965704,1753801863162,-460.0,0.0002051,2]
[375965705,1753801863172,-160.56420991,0.0002051,2]
[375965706,1753801863182,-460.0,0.0002051,2]
[375965707,1753801863192,-460.0,0.0002051,2]
[375965708,1753801863201,-460.0,0.0002051,2]
[375965709,1753801863210,-677.934949,0.0002051,2]
[375965710,1753801863220,-677.934949,0.0002051,2]
[375965711,1753801863230,-215.19897,0.0002051,2]
[375965712,1753801863239,-215.19897,0.0002051,2]
[375965713,1753801863249,-5752.38,0.0002051,2]
[375965714,1753801863258,-618.96514146,0.0002051,2]
[375965715,1753801863347,-747.4,0.00019688,2]
[375965716,1753801863357,-460.0,0.00019688,2]
[375965717,1753801863368,-747.4,0.00019962,2]
[375965718,1753801863379,-460.0,0.00019962,2]
[375965719,1753801863391,-747.4,0.00020236,2]
[375965720,1753801863402,-236.70485854,0.0002051,2]
[375965721,1753801863411,-799.06,0.0002051,2]
[375965722,1753801863422,-460.0,0.0002051,2]
[375965723,1753801863433,-460.0,0.0002051,2]
[375965724,1753801863445,-460.0,0.0002051,2]
[375965725,1753801863455,-744.81,0.0002051,2]
[375965726,1753801863465,-460.0,0.0002051,2]
[375965727,1753801863477,-460.0,0.0002051,2]
[375965728,1753801863487,-460.0,0.0002051,2]
[375965729,1753801863496,-460.0,0.0002051,2]
[375965730,1753801863507,-3021.87,0.0002051,2]
[375965731,1753801863517,-460.0,0.0002051,2]
[375965732,1753801863528,-460.0,0.0002051,2]
[375965733,1753801863538,-548.028466,0.0002051,2]
[375965734,1753801863549,-460.0,0.0002051,2]
[375965735,1753801863560,-1061.68,0.0002051,2]
[375965736,1753801863570,-548.02845904,0.0002051,2]
[375965737,1753801863581,-814.85,0.0002051,2]
[375965738,1753801863591,-485.45,0.0002051,2]
[375965739,1753801863602,-520.65,0.0002051,2]
[375965740,1753801863612,-2741.32,0.0002051,2]
[375965741,1753801863622,-151.0,0.0002051,2]
[375965742,1753801863631,-565.43,0.0002051,2]
[375965743,1753801863641,-1231.38,0.0002051,2]
[375965744,1753801863651,-472.58,0.0002051,2]
[375965745,1753801863660,-1909.24,0.0002051,2]
[375965746,1753801863670,-577.48,0.0002051,2]
[375965747,1753801863680,-3553.32,0.0002051,2]
[375965748,1753801863690,-460.0,0.0002051,2]
[375965749,1753801863700,-654.31,0.0002051,2]
[375965750,1753801863709,-190.96473976,0.0002051,2]
[375965751,1753801863719,-305.14765728,0.0002051,2]
[375965752,1753801863730,-57.76991599,0.0002051,2]
[375965753,1753801864276,400.0,0.00018,7]
[375965754,1753801864669,-460.0,0.00018832,2]
[375965755,1753801864679,-460.0,0.00018866,2]
[375965756,1753801864689,-2165.41,0.00019688,2]
[375965757,1753801864699,-151.0,0.00019794,2]
[375965758,1753801864708,-2165.41,0.00019962,2]
[375965759,1753801864717,-460.0,0.00020236,2]
[375965760,1753801864727,-2165.41,0.00020236,2]
[375965761,1753801864737,-919.29008401,0.0002051,2]
[375965762,1753801864746,-2428.42,0.0002051,2]
[375965763,1753801864756,-460.0,0.0002051,2]
[375965764,1753801864765,-767.52,0.0002051,2]
[375965765,1753801864774,-1052.62,0.0002051,2]
[375965766,1753801864784,-881.66,0.0002051,2]
[375965767,1753801864794,-819.8,0.0002051,2]
[375965768,1753801864804,-705.57,0.0002051,2]
[375965769,1753801864813,-7947.48,0.0002051,2]